bitfinex-derivatives/quotes_ETHF0:USTF0_20241022
["timestamp","ask_amount","ask_price","bid_price","bid_amount"]
[1729629452214,0.37974,2634.5,2634.4,1.37]
[1729629452719,1.74974,2634.5,2634.4,1.37]
[1729629452921,0.37976,2634.4,2634.3,3.87]
[1729629453230,0.37976,2634.4,2634.3,5.24]
[1729629455717,0.37976,2634.4,2634.3,2.0322]
[1729629458127,1.74976,2634.4,2634.3,2.0322]
[1729629461821,1.74976,2634.4,2634.3,0.6622]
[1729629462527,1.74976,2634.4,2634.2,2.7099]
[1729629462528,0.37977,2634.3,2634.2,2.003]
[1729629462722,3.77347,2634.3,2634.2,2.003]
[1729629468230,2.40347,2634.3,2634.2,2.003]
[1729629468938,1.73637,2634.3,2634.2,2.003]
[1729629472234,3.10637,2634.3,2634.2,2.003]
[1729629474539,1.73637,2634.3,2634.2,2.003]
[1729629499161,1.73637,2634.3,2634.2,1.37]
[1729629500662,3.10637,2634.3,2634.2,1.37]
[1729629500859,0.37979,2634.2,2634.1,3.2078]
[1729629501057,0.37979,2634.2,2634.1,4.5778]
[1729629504259,0.37979,2634.2,2634.1,1.37]
[1729629505566,1.74979,2634.2,2634.0,3.8656]
[1729629505768,2.4409,2634.1,2634.0,4.5778]
[1729629507767,2.4409,2634.1,2634.0,3.2078]
[1729629508470,2.4409,2634.1,2634.0,4.5778]
[1729629508673,5.8579,2634.1,2633.7,3.2078]
[1729629508864,1.74985,2633.8,2633.7,4.5778]
[1729629513669,0.37987,2633.6,2633.5,0.704]
[1729629513871,0.37987,2633.6,2633.4,2.6641]
[1729629513872,0.37989,2633.5,2633.4,1.2941]
[1729629514062,1.74989,2633.5,2633.4,2.0089]
[1729629515374,1.74989,2633.5,2633.4,3.3789]
[1729629515772,1.74989,2633.5,2633.4,3.7588]
[1729629515773,0.37989,2633.5,2633.4,3.7588]
[1729629517873,0.37989,2633.5,2633.4,3.3789]
[1729629518687,0.37989,2633.5,2633.4,6.5867]
[1729629523177,0.37989,2633.5,2633.4,3.3789]
[1729629523579,0.37989,2633.5,2633.4,6.5867]
[1729629527985,0.37989,2633.5,2633.4,6.9666]
[1729629528181,0.37989,2633.5,2633.4,6.5867]
[1729629528787,0.37989,2633.5,2633.4,6.9666]
[1729629528984,0.37989,2633.5,2633.4,6.5867]
[1729629533178,0.37989,2633.5,2633.4,3.3789]
[1729629533698,0.37989,2633.5,2633.4,6.5867]
[1729629535286,0.37989,2633.5,2633.4,3.3789]
[1729629535591,0.37989,2633.5,2633.4,6.9666]
[1729629536290,0.37989,2633.5,2633.4,3.3789]
[1729629536688,0.37989,2633.5,2633.4,6.5867]
[1729629537285,0.37989,2633.5,2633.4,6.9666]
[1729629538484,0.37989,2633.5,2633.4,3.7588]
[1729629538684,0.37989,2633.5,2633.4,6.9666]
[1729629539786,0.37989,2633.5,2633.4,6.5867]
[1729629540183,0.37989,2633.5,2633.4,6.9666]
[1729629540888,0.37989,2633.5,2633.4,3.7588]
[1729629541084,0.37989,2633.5,2633.4,6.5867]
[1729629541680,0.37989,2633.5,2633.4,6.9666]
[1729629542679,1.74989,2633.5,2633.1,3.79780486]
[1729629542887,0.37993,2633.2,2633.1,7.69540486]
[1729629543283,0.37993,2633.2,2633.1,9.06540486]
[1729629547091,0.37993,2633.2,2633.1,9.44535486]
[1729629547295,0.37993,2633.2,2633.1,9.06540486]
[1729629548389,0.37993,2633.2,2633.1,9.44535486]
[1729629549192,0.37993,2633.2,2633.1,9.06540486]
[1729629549395,0.37993,2633.2,2633.1,9.44535486]
[1729629549601,0.37993,2633.2,2633.1,6.23755486]
[1729629549797,0.37993,2633.2,2633.1,9.06540486]
[1729629550299,0.37993,2633.2,2633.1,9.44535486]
[1729629551496,1.74993,2633.2,2633.1,7.00560486]
[1729629551702,5.54753,2633.2,2633.1,7.00560486]
[1729629552300,5.54753,2633.2,2633.1,3.79780486]
[1729629553602,5.54753,2633.2,2632.9,3.79809335]
[1729629553603,5.1676,2633.2,2632.9,3.79809335]
[1729629553799,1.74996,2633.0,2632.9,3.79809335]
[1729629554001,5.54836,2633.0,2632.9,3.79809335]
[1729629554903,4.17836,2633.0,2632.9,3.79809335]
[1729629555101,5.54836,2633.0,2632.9,3.79809335]
[1729629556204,1.74996,2633.0,2632.9,3.79809335]
[1729629559094,5.54836,2633.0,2632.9,3.79809335]
[1729629559295,4.67242133,2633.0,2632.9,3.79809335]
[1729629559500,6.04242133,2633.0,2632.9,3.79809335]
[1729629561000,7.41242133,2633.0,2632.9,3.03252159]
[1729629562100,6.04242133,2633.0,2632.9,3.03252159]
[1729629562298,8.43542133,2633.0,2632.9,3.03252159]
[1729629563099,7.06542133,2633.0,2632.9,3.03252159]
[1729629566103,7.06542133,2633.0,2632.9,2.37365751]
[1729629566801,7.81172133,2633.0,2632.9,2.37365751]
[1729629568604,9.18172133,2633.0,2632.9,0.8246017]
[1729629572407,5.41872133,2633.0,2632.9,0.8246017]
[1729629572603,1.74996,2633.0,2632.9,0.8246017]
[1729629573207,1.74996,2633.0,2632.9,1.5112017]
[1729629576010,0.37996,2633.0,2632.9,1.5112017]
[1729629576213,1.74996,2633.0,2632.9,1.5112017]
[1729629578315,1.74996,2633.0,2632.9,2.8812017]
[1729629578316,0.37996,2633.0,2632.9,2.8812017]
[1729629578520,4.95776,2633.1,2632.9,3.2611717]
[1729629578814,4.95776,2633.1,2633.0,0.6947]
[1729629582714,1.74996,2633.1,2633.0,0.6947]
[1729629587610,1.74996,2633.1,2633.0,2.0647]
[1729629588119,0.37996,2633.1,2633.0,2.0647]
[1729629589410,0.37996,2633.1,2633.0,5.2725]
[1729629590322,0.37996,2633.1,2633.0,2.0647]
[1729629590516,0.37996,2633.1,2633.0,5.2725]
[1729629591617,0.37996,2633.1,2633.0,2.0647]
[1729629591826,0.37996,2633.1,2633.0,5.2725]
[1729629592018,1.74994,2633.2,2633.0,5.65246]
[1729629592215,0.37995,2633.1,2633.0,5.65246]
[1729629592417,0.37995,2633.1,2633.0,5.2725]
[1729629593824,0.37995,2633.1,2633.0,2.0647]
[1729629595128,0.37995,2633.1,2633.0,5.2725]
[1729629595623,0.37995,2633.1,2633.0,2.0647]
[1729629595817,0.37995,2633.1,2633.0,5.2725]
[1729629596018,0.37995,2633.1,2633.0,5.65246]
[1729629596227,0.37995,2633.1,2633.0,5.2725]
[1729629597321,0.37994,2633.2,2633.0,5.2725]
[1729629597627,0.37995,2633.1,2633.0,5.65245]
[1729629597921,1.74994,2633.2,2633.0,5.65245]
[1729629600620,1.37,2633.2,2633.0,5.65245]
[1729629600820,0.37995,2633.1,2633.0,5.65245]
[1729629601333,0.37995,2633.1,2633.0,5.2725]
[1729629601727,0.37995,2633.1,2633.0,5.65246]
[1729629602332,1.74995,2633.1,2633.0,5.65246]
[1729629602534,1.74995,2633.1,2633.0,5.2725]
[1729629602737,1.74995,2633.1,2633.0,5.65246]
[1729629603030,0.37995,2633.1,2633.0,5.65246]
[1729629603235,0.37995,2633.1,2633.0,5.2725]
[1729629604227,0.37995,2633.1,2633.0,5.65246]
[1729629605040,0.37995,2633.1,2633.0,5.2725]
[1729629605830,0.37995,2633.1,2633.0,2.0647]
[1729629606034,0.37995,2633.1,2633.0,5.2725]
[1729629607537,0.37995,2633.1,2633.0,1.37]
[1729629607843,0.37996,2633.0,2632.9,0.8246017]
[1729629608045,1.74996,2633.0,2632.9,0.8246017]
[1729629616251,1.74996,2633.0,2632.9,2.5745817]
[1729629616448,3.2078,2633.3,2632.9,2.1946017]
[1729629616640,0.37994,2633.2,2633.1,0.37994]
[1729629617144,1.74994,2633.2,2633.1,1.10744]
[1729629617346,1.74994,2633.2,2633.1,0.7275]
[1729629626449,0.7116,2633.4,2633.1,2.0975]
[1729629626450,1.37,2633.3,2633.1,2.0975]
[1729629626650,1.74993,2633.3,2633.2,3.16043]
[1729629627148,1.74993,2633.3,2633.2,2.7805]
[1729629627642,1.74993,2633.3,2633.2,1.4105]
[1729629639255,1.74993,2633.3,2632.9,4.0324017]
[1729629639256,1.37,2633.3,2632.9,4.0324017]
[1729629639551,1.74996,2633.0,2632.9,4.0324017]
[1729629645259,1.74996,2633.0,2632.9,5.7823817]
[1729629645457,0.37996,2633.0,2632.9,5.7823817]
[1729629646053,0.37996,2633.0,2632.9,2.5745817]
[1729629648657,1.37,2633.2,2632.9,2.1946017]
[1729629648961,1.74995,2633.2,2633.1,0.37993]
[1729629649362,1.74995,2633.2,2633.1,0.7371]
[1729629649553,1.74995,2633.2,2633.1,1.11705]
[1729629649762,1.74995,2633.2,2633.1,0.7371]
[1729629650558,1.74995,2633.2,2633.1,1.11705]
[1729629651265,1.74995,2633.2,2633.1,0.7371]
[1729629652660,1.74995,2633.2,2633.1,1.11705]
[1729629655062,1.74995,2633.2,2633.1,0.7371]
[1729629655464,0.37995,2633.1,2633.0,3.2078]
[1729629655770,1.74995,2633.1,2633.0,3.2078]
[1729629657168,1.74995,2633.1,2633.0,3.58776]
[1729629659275,1.74995,2633.1,2633.0,3.2078]
[1729629660781,1.74995,2633.1,2633.0,3.58776]
[1729629661668,0.37994,2633.2,2633.1,0.37993]
[1729629661863,0.37993,2633.3,2633.2,1.74993]
[1729629662268,1.74993,2633.3,2633.2,1.74993]
[1729629662468,0.37995,2633.2,2633.1,0.37994]
[1729629663076,1.74995,2633.2,2633.1,0.37994]
[1729629663272,1.37,2633.2,2633.1,3.2078]
[1729629663478,1.74993,2633.2,2633.1,3.2078]
[1729629664076,1.74993,2633.2,2633.1,3.58775]
[1729629664966,1.74993,2633.2,2633.1,0.37995]
[1729629665167,1.74993,2633.2,2633.1,3.58775]
[1729629666072,1.74993,2633.2,2633.1,0.37995]
[1729629667168,1.74993,2633.2,2633.1,3.58775]
[1729629669077,1.74993,2633.2,2633.1,0.37995]
[1729629669272,1.74993,2633.2,2633.1,3.58775]
[1729629669575,0.37993,2633.2,2633.1,3.58775]
[1729629670270,0.37991,2633.4,2633.3,0.37991]
[1729629670577,0.37991,2633.4,2633.3,1.74991]
[1729629671275,0.3799,2633.5,2633.4,0.37989]
[1729629671477,0.5701501,2633.7,2633.6,0.37987]
[1729629671665,0.37987,2633.7,2633.6,1.74987]
[1729629672271,0.57423933,2633.7,2633.6,1.37]
[1729629673177,1.94423933,2633.7,2633.6,2.0842]
[1729629677073,1.56436933,2633.7,2633.6,2.0842]
[1729629677273,1.94422933,2633.7,2633.6,2.0842]
[1729629678875,1.94422933,2633.7,2633.6,2.46407]
[1729629679074,1.94422933,2633.7,2633.6,2.0842]
[1729629679281,0.57422933,2633.7,2633.6,2.0842]
[1729629679478,0.37984,2633.9,2633.7,0.37986]
[1729629679684,0.37983,2633.9,2633.8,1.37]
[1729629680183,0.37983,2633.9,2633.8,1.74985]
[1729629680384,0.37983,2633.9,2633.8,1.37]
[1729629682286,0.37983,2633.9,2633.8,2.1162]
[1729629683189,1.74983,2633.9,2633.8,0.7462]
[1729629683385,0.37986,2633.7,2633.6,0.7142]
[1729629683584,0.37989,2633.5,2633.4,1.4666]
[1729629683887,1.74989,2633.5,2633.4,1.4666]
[1729629689196,1.74989,2633.5,2633.4,2.1997]
[1729629690187,1.74989,2633.5,2633.4,3.5697]
[1729629691088,1.74989,2633.5,2633.4,3.9496]
[1729629691292,1.74989,2633.5,2633.4,3.5697]
[1729629692490,0.37989,2633.5,2633.4,3.5697]
[1729629693793,0.37989,2633.5,2633.4,3.9496]
[1729629693991,0.19078599,2633.7,2633.4,3.5697]
[1729629694196,0.37987,2633.7,2633.6,1.74987]
[1729629694796,0.56845022,2633.7,2633.6,1.74987]
[1729629695589,0.18858022,2633.7,2633.6,1.74987]
[1729629695901,1.37,2633.9,2633.8,0.37984]
[1729629695902,0.37984,2633.9,2633.8,0.37984]
[1729629696090,0.37984,2633.9,2633.8,1.74984]
[1729629696502,1.74984,2633.9,2633.8,3.25194]
[1729629696690,1.74983,2634.0,2633.9,0.37983]
[1729629696995,1.74983,2634.0,2633.9,1.37]
[1729629700899,1.37,2634.0,2633.9,1.37]
[1729629701100,1.74982,2634.0,2633.9,1.37]
[1729629704600,3.39698672,2635.1,2633.9,9.7446]
[1729629704803,1.08917,2635.0,2634.9,1.37]
[1729629704995,2.45917,2635.0,2634.9,1.37]
[1729629705400,1.74967,2635.0,2634.9,1.37]
[1729629706400,5.1652,2635.0,2634.9,1.37]
[1729629706594,5.54487,2635.0,2634.9,1.37]
[1729629707609,1.74967,2635.0,2634.9,1.37]
[1729629708809,0.37969,2634.9,2634.8,1.37]
[1729629709007,1.74969,2634.9,2634.8,1.37]
[1729629709712,1.74969,2634.9,2634.8,1.7497]
[1729629710107,1.74969,2634.9,2634.8,1.37]
[1729629714419,0.37969,2634.9,2634.8,1.37]
[1729629714715,0.37969,2634.9,2634.8,1.7497]
[1729629714917,0.37969,2634.9,2634.8,1.37]
[1729629716017,0.37969,2634.9,2634.8,1.7497]
[1729629718113,0.18918672,2635.1,2634.8,2.74]
[1729629718312,1.16241,2635.5,2635.0,1.37]
[1729629718512,1.16241,2635.5,2635.4,1.37]
[1729629718513,0.37961,2635.5,2635.4,1.37]
[1729629718718,1.74961,2635.5,2635.4,1.37]
[1729629718914,1.7496,2635.5,2635.4,1.37]
[1729629719309,5.544,2635.5,2635.4,1.37]
[1729629719618,1.7496,2635.5,2635.4,1.37]
[1729629720719,5.544,2635.5,2635.4,1.37]
[1729629720918,1.7496,2635.5,2635.4,1.37]
[1729629721219,5.544,2635.5,2635.4,1.37]
[1729629721517,0.37962,2635.4,2635.3,1.37]
[1729629721710,1.74962,2635.4,2635.3,1.37]
[1729629722111,0.37962,2635.4,2635.3,1.37]
[1729629723712,0.37961,2635.5,2635.4,0.37961]
[1729629723913,3.39430645,2635.6,2635.5,0.3796]
[1729629724114,3.2078,2635.6,2635.5,3.247]
[1729629724511,3.3963914,2635.6,2635.5,3.247]
[1729629724713,3.7759814,2635.6,2635.5,2.8674]
[1729629725116,3.7759814,2635.6,2635.5,4.0443]
[1729629727323,0.5681814,2635.6,2635.5,4.0443]
[1729629729626,0.5681814,2635.6,2635.5,3.6647]
[1729629729823,0.5681814,2635.6,2635.5,4.0443]
[1729629732626,0.5681814,2635.6,2635.5,3.6647]
[1729629733128,0.5681814,2635.6,2635.5,4.0443]
[1729629734522,0.5681814,2635.6,2635.5,3.6647]
[1729629734826,0.37963,2635.3,2635.2,3.2078]
[1729629735031,0.37963,2635.3,2635.2,6.0697]
[1729629735731,0.37963,2635.3,2635.2,6.44934]
[1729629738526,0.37963,2635.3,2635.2,3.24154]
[1729629738828,0.37963,2635.3,2635.2,6.0697]
[1729629739426,0.37963,2635.3,2635.2,2.8619]
[1729629740530,1.18213,2635.3,2635.2,2.8619]
[1729629740930,1.18213,2635.3,2635.2,1.37]
[1729629741125,2.55213,2635.3,2635.2,1.37]
[1729629741328,2.55213,2635.3,2635.1,0.7618]
[1729629741329,0.37964,2635.2,2635.1,0.7618]
[1729629741631,8.3722,2635.2,2634.6,1.37]
[1729629741829,8.3722,2635.2,2634.6,2.2358]
[1729629741830,0.37972,2634.7,2634.6,2.2358]
[1729629742029,0.37972,2634.7,2634.6,3.6058]
[1729629742738,0.37972,2634.7,2634.6,2.8787]
[1729629745430,0.37972,2634.7,2634.6,3.25843]
[1729629745828,0.37972,2634.7,2634.6,2.8787]
[1729629747734,0.37972,2634.7,2634.6,3.25843]
[1729629748140,0.37972,2634.7,2634.6,4.01213]
[1729629749938,0.37972,2634.7,2634.6,3.6324]
[1729629752533,0.37972,2634.7,2634.6,4.01213]
[1729629752738,0.37972,2634.7,2634.6,3.6324]
[1729629756737,0.37972,2634.7,2634.6,4.01213]
[1729629760139,0.37972,2634.7,2634.6,3.6324]
[1729629765447,0.37972,2634.7,2634.6,1.74973]
[1729629765744,0.37972,2634.7,2634.5,3.2078]
[1729629765745,0.37973,2634.6,2634.5,3.2078]
[1729629765945,6.32113,2634.6,2634.5,3.2078]
[1729629766849,2.52513,2634.6,2634.5,3.2078]
[1729629767049,6.32113,2634.6,2634.5,3.2078]
[1729629768241,0.37976,2634.4,2634.3,5.3169]
[1729629768445,1.74976,2634.4,2634.3,5.3169]
[1729629769343,1.74976,2634.4,2634.3,3.9469]
[1729629770357,1.74976,2634.4,2634.3,2.1091]
[1729629770647,1.74976,2634.4,2634.3,0.7391]
[1729629770852,0.37979,2634.2,2634.1,1.5224]
[1729629771055,1.94347338,2634.2,2634.1,2.2612]
[1729629773254,0.19368338,2634.2,2634.1,3.6312]
[1729629773552,1.37,2634.5,2634.3,0.37977]
[1729629773553,0.37976,2634.4,2634.3,0.37977]
[1729629773744,0.56875161,2634.4,2634.3,4.95757]
[1729629774142,0.18899161,2634.4,2634.3,4.95757]
[1729629774349,1.74975,2634.5,2634.3,4.95757]
[1729629774748,1.94315135,2634.5,2634.4,0.7574]
[1729629779752,1.94315135,2634.5,2634.4,3.9652]
[1729629781749,0.57315135,2634.5,2634.4,5.71496]
[1729629782151,0.57315135,2634.5,2634.4,5.3352]
[1729629784068,2.93340135,2634.5,2634.1,1.5224]
[1729629784265,1.74979,2634.2,2634.1,1.5224]
[1729629785564,1.74979,2634.2,2634.1,2.288]
[1729629785955,0.37979,2634.2,2634.1,3.658]
[1729629786457,0.37979,2634.2,2634.1,4.0378]
[1729629786763,0.37979,2634.2,2634.1,3.658]
[1729629787151,0.37979,2634.2,2634.1,4.0378]
[1729629789569,0.37979,2634.2,2634.1,7.2456]
[1729629789862,1.37,2634.4,2634.2,0.37977]
[1729629789863,0.37979,2634.3,2634.2,0.37977]
[1729629790962,0.37979,2634.2,2634.1,7.24559]
[1729629794266,0.37979,2634.2,2634.1,4.03779]
[1729629794460,0.37979,2634.2,2634.1,7.24559]
[1729629796266,0.37979,2634.2,2634.1,4.03779]
[1729629796460,0.37979,2634.2,2634.1,7.24559]
[1729629797171,0.37979,2634.2,2634.1,4.03779]
[1729629797667,0.37979,2634.2,2634.1,7.24559]
[1729629800975,0.37978,2634.3,2634.2,0.37977]
[1729629802872,1.74977,2634.4,2634.3,0.37977]
[1729629804175,0.37978,2634.3,2634.2,0.37978]
[1729629804376,1.74978,2634.3,2634.2,0.37978]
[1729629806776,1.74978,2634.3,2634.2,3.58758]
[1729629810380,1.74978,2634.3,2634.2,0.37978]
[1729629810576,1.74978,2634.3,2634.2,3.58758]
[1729629811379,0.37978,2634.3,2634.2,3.58758]
[1729629812881,0.37978,2634.3,2634.2,0.37978]
[1729629813082,0.37978,2634.3,2634.2,3.58758]
[1729629813476,0.37978,2634.3,2634.2,0.37978]
[1729629813676,0.37978,2634.3,2634.2,3.58758]
[1729629814680,0.37978,2634.3,2634.2,0.37978]
[1729629814878,0.37978,2634.3,2634.2,3.58758]
[1729629816382,0.37978,2634.3,2634.2,0.37978]
[1729629816583,0.37978,2634.3,2634.2,3.58758]
[1729629817385,0.37978,2634.3,2634.2,0.37978]
[1729629817586,0.37978,2634.3,2634.2,3.58758]
[1729629818984,0.37977,2634.4,2634.3,0.37976]
[1729629819785,0.56632581,2634.4,2634.3,0.37976]
[1729629820087,0.37977,2634.3,2634.2,3.15713817]
[1729629820590,1.13617,2634.3,2634.2,3.15713817]
[1729629820788,1.32278283,2634.3,2634.2,3.15713817]
[1729629821390,2.69278283,2634.3,2634.2,3.15713817]
[1729629821786,0.37979,2634.2,2634.1,1.90219]
[1729629824789,0.37979,2634.2,2634.1,3.27219]
[1729629825889,0.37979,2634.2,2634.1,6.47999]
[1729629826090,0.37979,2634.2,2634.1,3.27219]
[1729629826401,0.37979,2634.2,2634.1,6.47999]
[1729629831992,0.37979,2634.2,2634.1,3.27219]
[1729629832695,0.37979,2634.2,2634.1,6.47999]
[1729629833097,0.37979,2634.2,2634.1,3.27219]
[1729629833298,0.37979,2634.2,2634.1,6.47999]
[1729629835701,0.37979,2634.2,2634.1,3.27219]
[1729629835898,0.37979,2634.2,2634.1,6.47999]
[1729629836294,0.37979,2634.2,2634.1,3.27219]
[1729629836495,0.37979,2634.2,2634.1,6.47999]
[1729629837595,0.37979,2634.2,2634.1,3.27219]
[1729629837995,0.37979,2634.2,2634.1,6.47999]
[1729629838893,0.37979,2634.2,2634.1,3.27219]
[1729629839095,0.37979,2634.2,2634.1,6.47999]
[1729629839602,1.74979,2634.2,2634.1,6.47999]
[1729629839997,1.74979,2634.2,2634.1,3.27219]
[1729629840298,1.74979,2634.2,2634.1,6.47999]
[1729629844101,1.74979,2634.2,2634.1,3.27219]
[1729629844302,1.74979,2634.2,2634.1,6.47999]
[1729629846810,1.74979,2634.2,2634.1,3.2078]
[1729629847310,2.47589,2634.2,2634.1,3.2078]
[1729629849006,2.47589,2634.2,2634.1,3.5876]
[1729629849410,1.74979,2634.2,2634.1,3.5876]
[1729629849812,1.74979,2634.2,2634.1,5.0754]
[1729629851413,0.18661283,2634.3,2634.1,6.0656]
[1729629851713,1.93639283,2634.3,2634.2,0.37979]
[1729629851914,1.93639283,2634.3,2634.2,1.13709]
[1729629854014,0.18661283,2634.3,2634.2,2.50709]
[1729629856311,1.93638283,2634.3,2634.2,1.13709]
[1729629856518,1.74977,2634.3,2634.2,1.13709]
[1729629857119,1.94424738,2634.3,2634.2,1.13709]
[1729629858421,1.94424738,2634.3,2634.2,0.7573]
[1729629860527,1.94424738,2634.3,2634.2,3.9651]
[1729629861828,1.94424738,2634.3,2634.2,0.7573]
[1729629862125,1.94424738,2634.3,2634.2,3.9651]
[1729629864013,1.94424738,2634.3,2634.2,4.34489]
[1729629865027,1.94424738,2634.3,2634.2,3.9651]
[1729629865417,1.94424738,2634.3,2634.2,0.7573]
[1729629865826,1.94424738,2634.3,2634.2,3.9651]
[1729629866625,1.94424738,2634.3,2634.2,0.7573]
[1729629867730,1.94424738,2634.3,2634.2,3.9651]
[1729629868127,1.94424738,2634.3,2634.2,0.7573]
[1729629868328,1.94424738,2634.3,2634.2,3.9651]
[1729629868628,1.94424738,2634.3,2634.2,0.7573]
[1729629868830,1.94424738,2634.3,2634.2,3.9651]
[1729629870425,1.94424738,2634.3,2634.2,4.34489]
[1729629872321,1.94424738,2634.3,2634.2,3.9651]
[1729629872525,1.94424738,2634.3,2634.2,4.34489]
[1729629873927,0.57424738,2634.3,2634.2,4.34489]
[1729629876427,0.57424738,2634.3,2634.2,3.7699451]
[1729629878233,0.57424738,2634.3,2634.2,3.3901551]
[1729629879027,0.57424738,2634.3,2634.2,3.7699451]
[1729629879538,0.57424738,2634.3,2634.2,3.3901551]
[1729629879732,0.57424738,2634.3,2634.2,0.1823551]
[1729629880135,0.57424738,2634.3,2634.2,3.7699451]
[1729629881838,0.57424738,2634.3,2634.2,0.5621451]
[1729629882033,0.57424738,2634.3,2634.2,3.7699451]
[1729629883338,0.57424738,2634.3,2634.2,0.5621451]
[1729629884027,0.57424738,2634.3,2634.2,3.7699451]
[1729629884631,0.57424738,2634.3,2634.2,3.2078]
[1729629885430,0.57424738,2634.3,2634.2,3.58759]
[1729629887636,0.57424738,2634.3,2634.2,4.37179]
[1729629888836,0.57424738,2634.3,2634.2,1.16399]
[1729629889037,0.57424738,2634.3,2634.2,4.37179]
[1729629890726,0.57424738,2634.3,2634.2,3.992]
[1729629891333,1.34114738,2634.3,2634.2,3.992]
[1729629891531,2.71114738,2634.3,2634.2,3.992]
[1729629892537,2.71114738,2634.3,2634.2,3.55073061]
[1729629892745,2.71114738,2634.3,2634.2,0.34293061]
[1729629893042,2.71114738,2634.3,2634.2,3.55073061]
[1729629894937,2.71114738,2634.3,2634.2,3.93052061]
[1729629898339,2.71114738,2634.3,2634.2,0.72272061]
[1729629898540,2.71114738,2634.3,2634.2,3.93052061]
[1729629900050,2.71114738,2634.3,2634.2,0.72272061]
[1729629900241,2.71114738,2634.3,2634.2,3.93052061]
[1729629900546,1.34114738,2634.3,2634.2,3.93052061]
[1729629901140,2.71114738,2634.3,2634.2,3.55073061]
[1729629902035,2.71114738,2634.3,2634.2,3.93052061]
[1729629903743,2.71114738,2634.3,2634.2,3.55073061]
[1729629903951,6.50714738,2634.3,2634.2,3.2078]
[1729629904142,0.37982,2634.0,2633.9,3.2078]
[1729629904447,0.37986,2633.7,2633.6,3.2078]
[1729629904642,1.74986,2633.7,2633.6,3.2078]
[1729629910644,1.74986,2633.7,2633.4,0.7391]
[1729629910645,0.37989,2633.5,2633.4,0.7391]
[1729629910851,0.3799,2633.4,2633.3,0.7514]
[1729629911053,2.4951,2633.4,2633.3,0.7514]
[1729629926154,2.4951,2633.4,2633.3,1.5249]
[1729629933463,1.1251,2633.4,2633.3,1.5249]
[1729629933655,2.4951,2633.4,2633.3,1.5249]
[1729629935161,1.7499,2633.4,2633.3,1.90482]
[1729629935956,1.7499,2633.4,2633.3,1.5249]
[1729629938072,0.37988,2633.6,2633.3,6.6925]
[1729629938261,1.37,2633.9,2633.5,1.37]
[1729629938465,1.6476,2634.0,2633.4,3.9735]
[1729629938466,1.37,2633.7,2633.6,1.74987]
[1729629938768,4.114,2634.1,2633.8,0.37985]
[1729629938769,1.37,2633.9,2633.8,0.37985]
[1729629938978,5.484,2634.1,2634.0,0.37982]
[1729629939274,1.7498,2634.1,2634.0,1.74982]
[1729629939469,0.37979,2634.2,2634.0,1.37]
[1729629939672,1.37,2634.2,2634.1,2.52609]
[1729629940373,1.55620631,2634.2,2634.1,1.15609]
[1729629941666,1.93599631,2634.2,2634.1,1.15609]
[1729629942062,1.37,2634.2,2634.1,5.9423]
[1729629942276,1.37,2634.3,2634.1,6.3221]
[1729629942462,1.37,2634.3,2634.2,1.74979]
[1729629943477,0.19303375,2634.7,2634.2,1.37]
[1729629943777,0.37972,2634.7,2634.5,1.74974]
[1729629943973,0.57387537,2634.7,2634.6,1.4982]
[1729629945470,1.94387537,2634.7,2634.6,1.4982]
[1729629946178,0.57387537,2634.7,2634.6,1.4982]
[1729629946369,1.94387537,2634.7,2634.6,1.4982]
[1729629955776,0.37974,2634.5,2634.4,0.7794]
[1729629955974,1.74974,2634.5,2634.4,0.7794]
[1729629960079,0.37976,2634.4,2634.3,1.4711]
[1729629960279,2.50456,2634.4,2634.3,1.4711]
[1729629960782,0.37981,2634.1,2633.9,3.58762]
[1729629960987,0.37979,2634.2,2634.0,1.91031]
[1729629961187,0.37979,2634.2,2634.0,2.65571]
[1729629961778,0.7548,2634.4,2634.0,2.65571]
[1729629962079,0.3798,2634.1,2634.0,2.65571]
[1729629962283,1.7498,2634.1,2634.0,2.2759]
[1729629962877,1.7498,2634.1,2634.0,6.45252]
[1729629962878,1.37,2634.1,2634.0,6.45252]
[1729629963085,1.7498,2634.1,2634.0,6.45252]
[1729629963279,1.37,2634.1,2634.0,6.45252]
[1729629963483,1.7498,2634.1,2634.0,6.0727]
[1729629964079,1.7498,2634.1,2634.0,6.45252]
[1729629965690,1.7498,2634.1,2634.0,9.66032]
[1729629966888,1.7498,2634.1,2634.0,6.45252]
[1729629967198,1.7498,2634.1,2634.0,9.66032]
[1729629967496,1.7498,2634.1,2634.0,5.86352]
[1729629967692,1.7498,2634.1,2634.0,5.4837]
[1729629968786,1.7498,2634.1,2634.0,5.86352]
[1729629969190,1.7498,2634.1,2634.0,2.65572]
[1729629976882,1.37,2634.1,2634.0,4.02572]
[1729629977600,1.7498,2634.1,2634.0,4.02572]
[1729629978889,1.37,2634.1,2634.0,4.02572]
[1729629979301,1.7498,2634.1,2634.0,4.02572]
[1729629979492,1.7498,2634.1,2634.0,2.65572]
[1729629983098,1.37,2634.1,2634.0,2.65572]
[1729629984193,1.7498,2634.1,2634.0,2.65572]
[1729629987599,1.7498,2634.1,2634.0,5.86352]
[1729629988992,1.37,2634.1,2634.0,5.86352]
[1729629989407,1.7498,2634.1,2634.0,5.86352]
[1729629990109,1.7498,2634.1,2634.0,2.65572]
[1729629990294,1.37,2634.1,2634.0,5.86352]
[1729629991004,2.1548,2634.1,2634.0,5.86352]
[1729629991397,2.1548,2634.1,2634.0,2.65572]
[1729629991592,2.1548,2634.1,2634.0,5.86352]
[1729629992588,2.5346,2634.1,2634.0,5.86352]
[1729629993392,2.1548,2634.1,2634.0,5.86352]